Cogmind - Beta 15 @@@ ROGUE MODE // 2025.08.08 @ 17:36:47 Player: Inverisimilidude Result: Destroyed by D-53 Grenadier with Mini Grenade Launcher Performance ------------- Evolutions (0) 0 Regions Visited (4) 800 Robots Destroyed (17) 85 Value Destroyed (282) 282 Prototype IDs (2) 40 Alien Tech Used (0) 0 Bonus (0) 0 TOTAL SCORE: 1207 Bonus ------- None Cogmind --------- Core Integrity 0/250 Matter 290/300 Energy 80/100 System Corruption 0% Temperature Cool (0) Movement Core (750) Ox14 Location -9/Mines Parts ------- > --- POWER (1) -------- (None) > --- PROPULSION (2) --- (None) > --- UTILITY (2) ------ High-capacity Storage Unit > --- WEAPON (2) ------- Autogun > --- INVENTORY (20) --- Ion Engine Ion Engine Reinforced Ion Engine Light Treads Improved Aluminum Leg Wheel Wheel Wheel Wheel Improved Heat Sink High-capacity Matter Pod (200) Sensor Array Beam Rifle Light Assault Rifle Grenade Launcher Mining Laser Peak State ------------ > --- POWER ------------ Light Ion Engine > --- PROPULSION ------- Wheel Wheel > --- UTILITY ---------- High-capacity Storage Unit Seismic Detector > --- WEAPON ----------- EM Pulse Gun Assault Rifle > --- INVENTORY -------- Ion Engine Ion Engine Light Treads Improved Aluminum Leg Wheel Wheel Wheel Wheel Improved Heat Sink High-capacity Matter Pod Sensor Array Beam Rifle Light Assault Rifle Autogun Grenade Launcher Mining Laser [Rating: 9] Favorites ----------- Power Ion Engine Engine Ion Engine Propulsion Wheel Treads Light Treads Wheel Wheel Utility Seismic Detector Device Seismic Detector Storage Small Storage Unit Weapon Assault Rifle Energy Gun EM Pulse Gun Ballistic Gun Assault Rifle Build | -11 -10 -10 -10 -9 ------- Run | Yrd Mat Min Exi Min Slots Evolved . | . . . . . Power . | . . . . . Propulsion . | . . . . . Utility . | . . . . . Weapon . | . . . . . Parts Attached 19 | 7 5 . 1 6 Power 3 | 1 1 . . 1 Engine 3 | 1 1 . . 1 Core . | . . . . . Reactor . | . . . . . Propulsion 4 | 2 . . . 2 Treads 1 | 1 . . . . Leg . | . . . . . Wheel 3 | 1 . . . 2 Hover . | . . . . . Flight . | . . . . . Utility 3 | 2 . . 1 . Device 1 | 1 . . . . Storage 2 | 1 . . 1 . Processor . | . . . . . Hackware . | . . . . . Protection . | . . . . . Artifact . | . . . . . Weapon 9 | 2 4 . . 3 Energy Gun 3 | 1 . . . 2 Energy Cannon . | . . . . . Ballistic Gun 6 | 1 4 . . 1 Ballistic Cannon . | . . . . . Launcher . | . . . . . Special Weapon . | . . . . . Impact Weapon . | . . . . . Slashing Weapon . | . . . . . Piercing Weapon . | . . . . . Special Melee Weapon . | . . . . . Unidentified Prototypes . | . . . . . Parts Lost 14 | . 3 . . 11 Power 3 | . 1 . . 2 Propulsion 4 | . . . . 4 Utility 1 | . . . . 1 Weapon 6 | . 2 . . 4 Highest Loss Streak 7 | . 3 . . 7 To Critical Strikes . | . . . . . Average Backups 8 | 3 6 8 8 12 Power . | . . . . 1 Propulsion 3 | 1 3 3 3 4 Utility 2 | . . 3 3 3 Weapon 2 | . 2 2 2 3 Tool/Special . | . . . . . Unused Backups 17 | . 1 1 . 15 Power 3 | . . . . 3 Propulsion 6 | . . . . 6 Utility 4 | . . 1 . 3 Weapon 4 | . 1 . . 3 Tool/Special . | . . . . . Average Slot Usage (%) 97 | . 95 100 100 96 Engine 12 | . 9 14 14 12 Treads 9 | . 14 14 14 3 Wheel 17 | . 14 14 14 23 Device 13 | . 14 14 14 13 Storage 14 | . 14 14 14 14 Energy Gun 5 | . 8 . . 10 Ballistic Gun 22 | . 19 28 28 16 Peak Build Rating 9 | 7 7 8 8 9 Average Rating 7 | 5 6 7 8 7 On Entrance 6 | . 7 7 8 8 Naked Turns . | . . . . . Heaviest Build 50 | 12 15 15 50 50 Greatest Support 20 | 20 20 10 10 20 Greatest Overweight (x) 4 | . 1 1 4 4 Average Overweight (x) 1 | . . 1 1 2 Largest Inventory Capacity 20 | 8 8 8 20 20 Average Capacity 12 | 7 8 8 9 20 Most Carried 18 | 5 8 8 8 18 Average Carried 8 | 3 6 8 8 12 Final Capacity 20 | 8 8 8 20 20 Final Carried 16 | 5 8 8 8 16 Class Distribution -------------------- 100% | Mutant Dominant Class ---------------- Mutant | -10/Materials Mutant | -10/Mines Mutant | -10/Exiles Mutant | -9/Mines Resources | -11 -10 -10 -10 -9 ----------- Run | Yrd Mat Min Exi Min Matter Collected 697 | 277 31 143 . 246 Remotely . | . . . . . Salvage Created 527 | 120 156 163 . 88 Parts 30 | 8 3 14 . 5 Haulers Intercepted . | . . . . . Recyclers Shooed . | . . . . . Parts Field Recycled . | . . . . . Retrieved Matter . | . . . . . Parts Self-Destructed . | . . . . . Prevented . | . . . . . Kills | -11 -10 -10 -10 -9 ------- Run | Yrd Mat Min Exi Min Combat Hostiles Destroyed 18 | . 5 7 . 6 Guns 17 | . 4 7 . 6 AOE 1 | . 1 . . . Classes Destroyed 5 | 2 2 . . 1 Tunneler 2 | 2 . . . . Recycler 1 | 1 . . . . Swarmer 10 | . 3 5 . 2 Grunt 4 | . 2 2 . . Assembled 4 | . . . . 4 Best Kill Streak 3 | 2 3 3 . 2 Combat Bots Only 3 | . 3 3 . 2 Max Kills in Single Turn 1 | 1 1 1 . 1 Gunslinging . | . . . . . Exploded 1 | . 1 . . . Melee . | . . . . . Uniques/NPCs Destroyed . | . . . . . Combat | -11 -10 -10 -10 -9 -------- Run | Yrd Mat Min Exi Min Hostile Shots Fired 91 | . 40 22 . 29 Missed 18 | . 13 1 . 4 Hits 73 | . 27 21 . 25 Melee 7 | . . . . 7 Projectile 66 | . 27 21 . 18 AOE 7 | . . . . 7 Part Disruptions 1 | . . . . 1 Damage Taken 1155 | 36 315 201 . 603 Core 254 | . 58 32 . 164 Absorbed by Shields . | . . . . . Core Remaining (%) 100 | 100 . . . . Volleys Fired 54 | 7 17 11 . 19 Largest 2 | 2 2 2 . 2 Hottest 65 | 60 60 40 . 65 Shots Fired 104 | 14 32 22 . 36 Gun 104 | 14 32 22 . 36 Cannon . | . . . . . Launcher . | . . . . . Special . | . . . . . Kinetic 72 | 7 18 22 . 25 Thermal . | . . . . . Explosive . | . . . . . Electromagnetic 32 | 7 14 . . 11 Robot Hit Streak 11 | 5 11 5 . 3 Robot Miss Streak 4 | 1 4 1 . 3 Penetration Max . | . . . . . Secondary Targets 2 | . . 1 . 1 Max Gunslinging Chain 1 | . . 1 . 1 Shots Hit Robots 66 | 9 22 16 . 19 Core Hits 36 | 5 10 9 . 12 Critical Kills 2 | . . 1 . 1 Critical Parts Destroyed 1 | . 1 . . . Critical Strikes 3 | . 1 1 . 1 Destroy 3 | . 1 1 . 1 Melee Attacks . | . . . . . Impact . | . . . . . Slashing . | . . . . . Piercing . | . . . . . Sneak Attacks . | . . . . . Combat Hostiles . | . . . . . Follow-up Attacks . | . . . . . Damage Inflicted 857 | 161 245 210 . 241 Guns 759 | 86 222 210 . 241 Cannons . | . . . . . Explosions 98 | 75 23 . . . Melee . | . . . . . Ramming . | . . . . . Kinetic 493 | 33 84 210 . 166 Thermal 98 | 75 23 . . . Explosive . | . . . . . Electromagnetic 266 | 53 138 . . 75 Impact . | . . . . . Slashing . | . . . . . Piercing . | . . . . . Highest Corruption . | . . . . . Average Corruption . | . . . . . Corruption Purged . | . . . . . Corruption Blocked . | . . . . . Overload Shots . | . . . . . Overflow Damage 4 | 4 . . . . Projectiles . | . . . . . Explosions 4 | 4 . . . . Melee . | . . . . . Knockbacks . | . . . . . Impact . | . . . . . Kinetic . | . . . . . Secondary . | . . . . . Self-Inflicted Damage 62 | 37 25 . . . Shots 2 | 1 1 . . . Rammed . | . . . . . Targets Rammed . | . . . . . Kicked . | . . . . . Crushed . | . . . . . Highest Temperature 52 | 40 52 6 . 20 Average Temperature 17 | 18 20 3 . 14 Received Heat Transfer 247 | . 96 51 . 100 Siege Activations . | . . . . . Martial Activations . | . . . . . Shielding Activations . | . . . . . Robots Disrupted . | . . . . . Combat Hostiles . | . . . . . Robots Corrupted . | . . . . . Combat Hostiles . | . . . . . Parts Fried . | . . . . . Impact Corruptions . | . . . . . Robots Melted . | . . . . . Combat Hostiles . | . . . . . Parts Melted . | . . . . . Heat Transferred 100 | 50 50 . . . Parts Sabotaged . | . . . . . Parts Stolen . | . . . . . Parts Stripped . | . . . . . Power Chain Reactions 3 | 2 1 . . . Alert | -11 -10 -10 -10 -9 ------- Run | Yrd Mat Min Exi Min Maximum Alert Level . | . . . . . Low Security (%) 100 | 100 100 100 . 100 Level 1 . | . . . . . Level 2 . | . . . . . Level 3 . | . . . . . Level 4 . | . . . . . Level 5 . | . . . . . High Security . | . . . . . Max Security . | . . . . . Peak Influence 100 | 5 83 100 . 30 Initial 6 | . . 6 . . Average 19 | 1 49 33 . 1 Influence Increases 393 | 15 168 170 . 40 Destroy 0b10 Robot/C 280 | . 100 140 . 40 Destroy 0b10 Robot/NC 15 | 15 . . . . Destroy Leader 50 | . 20 30 . . Destroy Structure 3 | . 3 . . . Partial Spotted 15 | . 15 . . . Lose Combat Pursuer 30 | . 30 . . . Influence Decreases 393 | 15 150 98 90 40 Entered New Map 102 | . . 12 90 . Time Decay 251 | 15 120 86 . 30 Lost Part 40 | . 30 . . 10 Squads Dispatched . | . . . . . Investigation . | . . . . . Extermination . | . . . . . Reinforcement . | . . . . . Assault . | . . . . . Garrison . | . . . . . Intercept . | . . . . . Searches Triggered . | . . . . . Construction Impeded . | . . . . . Haulers Reinforced . | . . . . . Active Scanning Responses . | . . . . . Cargo Convoy Interrupts . | . . . . . Stealth | -11 -10 -10 -10 -9 --------- Run | Yrd Mat Min Exi Min Distress Signals . | . . . . . Communications Jammed . | . . . . . Distress Signals . | . . . . . Times Spotted 25 | . 8 7 . 10 Peak Tracking Total 8 | . 4 3 . 8 Tactical Retreats 3 | . 1 . . 2 Traps | -11 -10 -10 -10 -9 ------- Run | Yrd Mat Min Exi Min Traps Triggered . | . . . . . Indirectly . | . . . . . Trap Hack Attempts . | . . . . . Triggered . | . . . . . Disarmed . | . . . . . Reprogrammed . | . . . . . Reused . | . . . . . Traps Extracted . | . . . . . Installed . | . . . . . Triggered . | . . . . . Machines | -11 -10 -10 -10 -9 ---------- Run | Yrd Mat Min Exi Min Machines Disabled . | . . . . . Max in Single Turn . | . . . . . Machines Repaired . | . . . . . Machines Dismantled . | . . . . . Machines Sabotaged . | . . . . . Overloaded Fab Kills . | . . . . . Hacking | -11 -10 -10 -10 -9 --------- Run | Yrd Mat Min Exi Min Machines Accessed 5 | . 4 . 1 . Terminals 4 | . 4 . . . Fabricators . | . . . . . Repair Stations . | . . . . . Recycling Units . | . . . . . Scanalyzers . | . . . . . Garrison Access . | . . . . . Total Hacks 11 | . 10 . 1 . Successful 5 | . 4 . 1 . Failed 5 | . 5 . . . Catastrophic 1 | . 1 . . . Database Lockouts 1 | . 1 . . . Manual 5 | . 5 . . . Terminals 10 | . 10 . . . Fabricators . | . . . . . Repair Stations . | . . . . . Recycling Units . | . . . . . Scanalyzers . | . . . . . Garrison Access . | . . . . . Terminal Hacks 5 | . 4 . 1 . Record 1 | . . . 1 . Robot Analysis 2 | . 2 . . . Prototype ID Bank 1 | . 1 . . . Branch Access Points 1 | . 1 . . . Fabricator Hacks . | . . . . . Repair Station Hacks . | . . . . . Recycling Unit Hacks . | . . . . . Scanalyzer . | . . . . . Garrison Access Hacks . | . . . . . Unauthorized Hacks . | . . . . . Terminals . | . . . . . Fabricators . | . . . . . Repair Stations . | . . . . . Recycling Units . | . . . . . Scanalyzers . | . . . . . Garrison Access . | . . . . . Data Cores Recovered . | . . . . . Used . | . . . . . Hacking Detections 3 | . 3 . . . Full Trace Events 1 | . 1 . . . Feedback Events . | . . . . . Feedback Blocked . | . . . . . Robot Schematics Acquired . | . . . . . Robots Built . | . . . . . Authchips . | . . . . . Time . | . . . . . Total Robot Build Rating . | . . . . . Part Schematics Acquired . | . . . . . Parts Built . | . . . . . Authchips . | . . . . . Time . | . . . . . Total Part Build Rating . | . . . . . Parts Repaired . | . . . . . Time . | . . . . . Parts Recycled . | . . . . . Recycled Matter . | . . . . . Retrieved Matter . | . . . . . Retrieved Components . | . . . . . Parts Scanalyzed . | . . . . . Part Schematics Acquired . | . . . . . Parts Damaged . | . . . . . Bothacking | -11 -10 -10 -10 -9 ------------ Run | Yrd Mat Min Exi Min Used RIF Installer . | . . . . . Robots Hacked . | . . . . . Non-combat . | . . . . . Combat . | . . . . . Robot Hacks Applied . | . . . . . Relay Couplers Released . | . . . . . Fabnet Peak Effective % . | . . . . . Robots Rewired . | . . . . . Allies Hacked . | . . . . . Hacks Repelled . | . . . . . Allies | -11 -10 -10 -10 -9 -------- Run | Yrd Mat Min Exi Min Total Allies 1 | . . . . 1 Largest Group 1 | . . . . 1 Highest-Rated Group 31 | . . . . 31 Highest-Rated Ally 31 | . . . . 31 Total Orders . | . . . . . Ally Attacks 4 | . . . . 4 Total Damage 40 | . . . . 40 Kills 1 | . . . . 1 Allies Corrupted . | . . . . . Allies Melted . | . . . . . Intel | -11 -10 -10 -10 -9 ------- Run | Yrd Mat Min Exi Min Active Infowar (turns) 1537 | 31 264 275 412 555 Seismic 1537 | 31 264 275 412 555 Robot Analysis Total 2 | . 2 . . . Derelict Logs Recovered 2 | . . 1 . 1 Drone Launches . | . . . . . Drone Recoveries . | . . . . . Exploration | -11 -10 -10 -10 -9 ------------- Run | Yrd Mat Min Exi Min Turns Passed 1650 | 134 264 275 412 565 Spaces Moved 1239 | 65 184 240 412 338 Core 2 | 2 . . . . Treads 79 | 61 18 . . . Legs . | . . . . . Wheels 1158 | 2 166 240 412 338 Hover . | . . . . . Flight . | . . . . . Fastest Speed 50 | 50 80 95 95 110 Average Speed 106 | 154 98 95 100 117 Slowest Speed 160 | 160 160 95 140 140 Overloaded Moves . | . . . . . Propulsion Burnouts . | . . . . . Robots Hopped . | . . . . . Potential Cave-ins . | . . . . . Cave-ins Triggered . | . . . . . Exploration Rate (%) 43 | 5 37 48 85 41 Regions Visited 4 Branch Regions 3 Pre-discovered Areas 1 | . . . . 1 Known Exits Taken 1 | . 1 . . . Unknown Exits Taken 3 | 1 . 1 1 . Scrap Searched 2 | . . . . 2 Spaces Dug . | . . . . . Terrain Destroyed 4 | 2 2 . . . Melee . | . . . . . Projectile . | . . . . . AOE 4 | 2 2 . . . Terrain Rammed . | . . . . . Walls Destroyed . | . . . . . Machines Disabled . | . . . . . Actions | -11 -10 -10 -10 -9 --------- Run | Yrd Mat Min Exi Min Total 1470 | 83 237 266 413 471 Wait 132 | . 22 14 . 96 Move 1235 | 64 183 239 411 338 Hop . | . . . . . Pick Up 26 | 5 8 1 . 12 Fast Attach 9 | 7 . . . 2 Attach 7 | . 3 . . 4 Detach . | . . . . . Swap 3 | . 2 . 1 . Drop 4 | . 2 1 1 . Fire 54 | 7 17 11 . 19 Melee . | . . . . . Ram . | . . . . . Kick . | . . . . . Crush . | . . . . . Escape Stasis . | . . . . . Rewire . | . . . . . Trap . | . . . . . Miscellaneous . | . . . . . Route ------- -11/Scrapyard -10/Materials (discovered 2 exits: *Min x2) -10/Mines (discovered 2 exits: [*Mat] / *Exi) -10/Exiles -9/Mines (discovered 1 exit: [*Mat]) History --------- Turn | Location | Event 10 | -11/Scrapyard | Discovered new exit (range 16) 135 | -11/Scrapyard | Entered Materials 229 | -10/Materials | Identified exit to Mines 308 | -10/Materials | Build established: Mutant 316 | -10/Materials | Lost 3 parts (1p2w) 349 | -10/Materials | Central database locked down 399 | -10/Materials | Entered Mines 472 | -10/Mines | Learned Materials security intel 481 | -10/Mines | Discovered new exit (range 5) 669 | -10/Mines | Deemed a non-threat by the Exiles lab entrance 670 | -10/Mines | Discovered new exit (range 5) 674 | -10/Mines | Entered Exiles 674 | -10/Exiles | Found Exiles lab abandoned 1069 | -10/Exiles | Discovered new exit (range 14) 1086 | -10/Exiles | Entered Mines 1090 | -9/Mines | Escorted by a lone wolf Derelict 1110 | -9/Mines | Learned location of Storage (-8) 1137 | -9/Mines | Met a Derelict bent on vengeance 1150 | -9/Mines | Assembled infested the area 1155 | -9/Mines | Assisted by a Guerilla fighting off Assembled 1207 | -9/Mines | Core integrity fell below 50% 1240 | -9/Mines | Lost 3 parts (1p1n1w) 1330 | -9/Mines | Core integrity fell below 20% 1416 | -9/Mines | Found DCF Scrap (13 items) 1450 | -9/Mines | Learned 2 Materials zone layouts 1562 | -9/Mines | Discovered new exit (range 14) 1651 | -9/Mines | Destroyed by D-53 Grenadier with Mini Grenade Launcher Last Messages --------------- 01435_ Acquired Rnf. Ion Engine. 01450_ Acquired derelict log, extracted data. Data stored: Materials zone layouts (x2). 01478_ Searching scrap... 01478_ Found EM Shotgun. 01478_ Found Hcp. Battery. 01478_ Found 36 Matter. 01489_ Acquired EM Shotgun. 01562_ EXIT=FOUND 01639_ Wheel destroyed. 01639_ R-06 Scavenger destroyed. 01641_ Seismic Detector destroyed. 01641_ D-53 Grenadier destroyed. 01643_ K-01 Serf destroyed. 01645_ The unstable cave ceiling collapses. 01647_ Wheel destroyed. 01647_ EM Pulse Gun destroyed. 01649_ EM Shotgun destroyed. 01649_ Lgt. Ion Engine destroyed. 01649_ Assault Rifle destroyed. Map ----- +----------------------------------------------------+ | ???????????????# #????# ##??????????? | | ???????????????# #????# #??????????? | | ???????????????# #????# #??###?????? | | ???????????????# #????## #### ##????? | | ???????????????# #????## ##%! ##???? | | ???????????????# #????# #???? | | ???????????????# #???# ## #???? | | ???????????#???# #???# ### #???? | | ???????????# ### #???# ###?# #???? | | ???????????# #???## ##???# #???? | | ???????????#### ####?###?????# #???? | | ??????????????# = #?????????# #???? | | ??????????????# ###%#?????????# #???? | | ??????####????# #?# ##??????### #???? | | ?????## ###### ###= ##?????# #???? | | ????## ##=! !##????# #???? | | ????# ######## ##???# ###???? | | ???## ##?????# ##### #?????? | | #### ##??????# #?????? | | ###??????## ########?????? | | ##?????????## #?###????????? | | ##??????????# ! # ##???????? | | ## ##?????????# ###?????? | | ### #?????????# ##????? | | ??# #?????????### ! #????? | | ??## ##???????????# @ #????? | | ???### #????????????## #????? | | ?????# #????????????# ##????? | | ?????# #????????????## d ###?????? | | ?????# #?????????????# ##???????? | | ?????# #????????????? ##????????? | | ?##### #???????????? #?????????? | | ?# #??????????? #?????????? | | ## #####?????????? #?????????? | | #????????????? < #?????????? | | ####???????????? ##?????????? | | ??????????????? ### ##??????????? | | ??????????????????## #????????????? | | ???????????????????# ?????????????? | | ????????????????????? ?????????????? | | ??????????????????????? ?????????????? | | ?????????????????????????????????????? | | ?????????????????????????????????????? | | ?????????????????????????????????????? | | ?????????????????????????????????????? | | ?????????????????????????????????????? | | ?????????????????????????????????????? | | ?????????????????????????????????????? | | ?????????????????????????????????????? | | | +----------------------------------------------------+ Best States ------------- Heat Dissipation 25 Energy Generation 10 Energy Capacity 250 Matter Stores 300 Matter Capacity 300 Sight Range 16 Terrain Scan Density 10 Evasion (%) 44 Recoil Reduction 1 Item Schematics ----------------- None Robot Schematics ------------------ None Fabricated ------------ Nothing Repaired ---------- Nothing Alien Tech Used ----------------- None Achievements -------------- None Challenges ------------ None Game ------ Seed PointSuperchargedBotcube Manual? 0 Play Time 00:08:27 Cumulative 107.9 hours Start 2025.08.08 @ 17:25:11 End 2025.08.08 @ 17:36:47 Sessions 1 Manual Loads 0 Difficulty Rogue Special Mode None Game No. 134 Rogue 134 Adventurer 0 Explorer 0 Win Type - Total 0 Types 0/0/0/0/0/0/0/0/0/0 Lore% 63 Gallery% 48 Achievement% 45 Wizard Run 0 Options --------- Layout 1 ASCII 0 Keyboard 0 Movement Arrows Keybinds 0 Fullscreen 1 Font 24/Smallcaps Map View 50x35 Zoom Use 0% Tactical HUD 1 Map Filters NONE Filters NONE Steam 1 RUN: c3f95d50-beec-42c1-8e67-9ec5148e6ab2